Cogmind - Beta 13 @@@ ROGUE MODE // 2024.04.08 @ 23:10:01 Player: f_ Result: Destroyed by S-27 Virus with Autogun Performance ------------- Evolutions (1) 500 Regions Visited (5) 1000 Robots Destroyed (0) 0 Value Destroyed (0) 0 Prototype IDs (2) 40 Alien Tech Used (0) 0 Bonus (800) 800 TOTAL SCORE: 2340 Bonus ------- Pacifist 200 Met Imprinter 300 Was Imprinted 300 Cogmind --------- Core Integrity 0/400 Matter 136/300 Energy 99/100 System Corruption 0% Temperature Cool (0) Movement Core (50) Location -6/Proximity Caves Parts ------- > --- POWER (1) -------- (None) > --- PROPULSION (2) --- (None) > --- UTILITY (4) ------ Signal Interpreter Makeshift System Shield > --- WEAPON (2) ------- (None) > --- INVENTORY (5) ---- Makeshift Power Source Makeshift Axe Makeshift Sword Peak State ------------ > --- POWER ------------ (None) > --- PROPULSION ------- (None) > --- UTILITY ---------- Experimental Sensor Array Signal Interpreter Bomb Factory No. 2 > --- WEAPON ----------- (None) > --- INVENTORY -------- (None) [Rating: 22] Favorites ----------- Power None Propulsion None Utility Signal Interpreter Device Experimental Sensor Array Processor Signal Interpreter Hackware Makeshift System Shield Protection Improved Core Shielding Weapon Makeshift Axe Slashing Weapon Makeshift Axe Build | -11 -10 -9 -9 -7 -6 ------- Run | Yrd Mat Mat Min Zio Pro Slots Evolved 2 | . . 2 . . . Power . | . . . . . . Propulsion . | . . . . . . Utility 2 | . . 2 . . . Weapon . | . . . . . . Parts Attached 6 | . . 1 1 3 1 Power . | . . . . . . Engine . | . . . . . . Core . | . . . . . . Reactor . | . . . . . . Propulsion . | . . . . . . Treads . | . . . . . . Leg . | . . . . . . Wheel . | . . . . . . Hover . | . . . . . . Flight . | . . . . . . Utility 5 | . . 1 1 2 1 Device 2 | . . . 1 1 . Storage . | . . . . . . Processor 1 | . . 1 . . . Hackware 1 | . . . . 1 . Protection 1 | . . . . . 1 Artifact . | . . . . . . Weapon 1 | . . . . 1 . Energy Gun . | . . . . . . Energy Cannon . | . . . . . . Ballistic Gun . | . . . . . . Ballistic Cannon . | . . . . . . Launcher . | . . . . . . Special Weapon . | . . . . . . Impact Weapon . | . . . . . . Slashing Weapon 1 | . . . . 1 . Piercing Weapon . | . . . . . . Special Melee Weapon . | . . . . . . Unidentified Prototypes 2 | . . . 1 1 . Parts Lost 2 | . . . . . 2 Power . | . . . . . . Propulsion . | . . . . . . Utility 2 | . . . . . 2 Weapon . | . . . . . . Highest Loss Streak 2 | . . . . . 2 To Critical Strikes . | . . . . . . Average Slot Usage (%) 28 | . . 8 11 32 41 Device 8 | . . . . 11 9 Processor 10 | . . 8 11 11 11 Hackware 7 | . . . . 9 11 Protection 1 | . . . . . 9 Naked Turns 43 | . 36 7 . . . Heaviest Build 3 | . . . 1 1 3 Greatest Support 3 | 3 3 3 3 3 3 Greatest Overweight (x) . | . . . . . . Average Overweight (x) . | . . . . . . Largest Inventory Capacity 5 | 5 5 5 5 5 5 Average Capacity 5 | 5 5 5 5 5 5 Most Carried 3 | . . . . 3 3 Average Carried 2 | . . . . 2 3 Final Capacity 5 | 5 5 5 5 5 5 Final Carried 3 | . . . . 3 3 Class Distribution -------------------- 100% | Mutant Dominant Class ---------------- Mutant | -10/Materials Mutant | -9/Materials Mutant | -9/Mines Mutant | -7/Zion Mutant | -6/Proximity Caves Resources | -11 -10 -9 -9 -7 -6 ----------- Run | Yrd Mat Mat Min Zio Pro Matter Collected 86 | 65 . . . . 21 Remotely . | . . . . . . Salvage Created . | . . . . . . Parts . | . . . . . . Haulers Intercepted . | . . . . . . Recyclers Shooed . | . . . . . . Parts Field Recycled . | . . . . . . Retrieved Matter . | . . . . . . Parts Self-Destructed 1 | . . . . 1 . Prevented . | . . . . . . Kills | -11 -10 -9 -9 -7 -6 ------- Run | Yrd Mat Mat Min Zio Pro Combat Hostiles Destroyed . | . . . . . . Classes Destroyed . | . . . . . . Best Kill Streak . | . . . . . . Combat Bots Only . | . . . . . . Max Kills in Single Turn . | . . . . . . Gunslinging . | . . . . . . Exploded . | . . . . . . Melee . | . . . . . . Uniques/NPCs Destroyed . | . . . . . . Combat | -11 -10 -9 -9 -7 -6 -------- Run | Yrd Mat Mat Min Zio Pro Hostile Shots Fired 94 | . 11 13 7 . 63 Missed 41 | . 5 7 4 . 25 Damage Taken 573 | . 52 74 60 . 387 Core 454 | . 52 74 60 . 268 Absorbed by Shields . | . . . . . . Redirected to Shielding 91 | . . . . . 91 Core Remaining (%) 89 | 100 79 . . . . Volleys Fired . | . . . . . . Largest . | . . . . . . Hottest . | . . . . . . Shots Fired . | . . . . . . Gun . | . . . . . . Cannon . | . . . . . . Launcher . | . . . . . . Special . | . . . . . . Kinetic . | . . . . . . Thermal . | . . . . . . Explosive . | . . . . . . Electromagnetic . | . . . . . . Robot Hit Streak . | . . . . . . Robot Miss Streak . | . . . . . . Penetration Max . | . . . . . . Secondary Targets . | . . . . . . Shots Hit Robots . | . . . . . . Core Hits . | . . . . . . Critical Kills . | . . . . . . Critical Parts Destroyed . | . . . . . . Critical Strikes . | . . . . . . Melee Attacks . | . . . . . . Impact . | . . . . . . Slashing . | . . . . . . Piercing . | . . . . . . Sneak Attacks . | . . . . . . Combat Hostiles . | . . . . . . Follow-up Attacks . | . . . . . . Damage Inflicted . | . . . . . . Guns . | . . . . . . Cannons . | . . . . . . Explosions . | . . . . . . Melee . | . . . . . . Ramming . | . . . . . . Kinetic . | . . . . . . Thermal . | . . . . . . Explosive . | . . . . . . Electromagnetic . | . . . . . . Impact . | . . . . . . Slashing . | . . . . . . Piercing . | . . . . . . Highest Corruption 2 | . . 2 2 2 . Average Corruption 2 | . . 2 2 2 . Corruption Purged . | . . . . . . Corruption Blocked . | . . . . . . Effects 2 | . . . 1 1 . Heat Flow Errors 1 | . . . 1 . . Data Loss (minor) 1 | . . . . 1 . Overload Shots . | . . . . . . Overflow Damage . | . . . . . . Projectiles . | . . . . . . Explosions . | . . . . . . Melee . | . . . . . . Knockbacks . | . . . . . . Impact . | . . . . . . Kinetic . | . . . . . . Secondary . | . . . . . . Self-Inflicted Damage . | . . . . . . Shots . | . . . . . . Rammed . | . . . . . . Targets Rammed . | . . . . . . Kicked . | . . . . . . Crushed . | . . . . . . Highest Temperature 220 | . . . 220 . . Average Temperature 122 | . . . 122 . . Received Heat Transfer 138 | . . 45 33 . 60 Siege Activations . | . . . . . . Robots Corrupted . | . . . . . . Combat Hostiles . | . . . . . . Parts Fried . | . . . . . . Impact Corruptions . | . . . . . . Robots Melted . | . . . . . . Combat Hostiles . | . . . . . . Parts Melted . | . . . . . . Heat Transferred . | . . . . . . Parts Sabotaged . | . . . . . . Parts Stolen . | . . . . . . Parts Stripped . | . . . . . . Power Chain Reactions . | . . . . . . Alert | -11 -10 -9 -9 -7 -6 ------- Run | Yrd Mat Mat Min Zio Pro Peak Influence 95 | . . 15 95 . . Initial 5 | . . . 5 . . Average 33 | . . 3 58 . . Maximum Alert Level . | . . . . . . Low Security (%) 100 | 100 100 100 100 . . Level 1 . | . . . . . . Level 2 . | . . . . . . Level 3 . | . . . . . . Level 4 . | . . . . . . Level 5 . | . . . . . . High Security . | . . . . . . Max Security . | . . . . . . Squads Dispatched . | . . . . . . Investigation . | . . . . . . Extermination . | . . . . . . Reinforcement . | . . . . . . Assault . | . . . . . . Garrison . | . . . . . . Intercept . | . . . . . . Searches Triggered . | . . . . . . Construction Impeded . | . . . . . . Haulers Reinforced . | . . . . . . Active Scanning Responses . | . . . . . . Cargo Convoy Interrupts . | . . . . . . Stealth | -11 -10 -9 -9 -7 -6 --------- Run | Yrd Mat Mat Min Zio Pro Distress Signals . | . . . . . . Communications Jammed . | . . . . . . Distress Signals . | . . . . . . Times Spotted 18 | . 3 6 6 . 3 Peak Tracking Total 6 | . 3 6 2 . 3 Tactical Retreats 2 | . . . 2 . . Traps | -11 -10 -9 -9 -7 -6 ------- Run | Yrd Mat Mat Min Zio Pro Traps Triggered 1 | . . 1 . . . Indirectly . | . . . . . . Trap Hack Attempts . | . . . . . . Triggered . | . . . . . . Disarmed . | . . . . . . Reprogrammed . | . . . . . . Reused . | . . . . . . Traps Extracted . | . . . . . . Installed . | . . . . . . Triggered . | . . . . . . Machines | -11 -10 -9 -9 -7 -6 ---------- Run | Yrd Mat Mat Min Zio Pro Machines Disabled . | . . . . . . Max in Single Turn . | . . . . . . Machines Repaired . | . . . . . . Machines Dismantled . | . . . . . . Machines Sabotaged . | . . . . . . Overloaded Fab Kills . | . . . . . . Hacking | -11 -10 -9 -9 -7 -6 --------- Run | Yrd Mat Mat Min Zio Pro Machines Accessed 1 | . 1 . . . . Terminals 1 | . 1 . . . . Fabricators . | . . . . . . Repair Stations . | . . . . . . Recycling Units . | . . . . . . Scanalyzers . | . . . . . . Garrison Access . | . . . . . . Total Hacks 2 | . 2 . . . . Successful 1 | . 1 . . . . Failed 1 | . 1 . . . . Catastrophic . | . . . . . . Database Lockouts . | . . . . . . Manual 2 | . 2 . . . . Terminals 2 | . 2 . . . . Fabricators . | . . . . . . Repair Stations . | . . . . . . Recycling Units . | . . . . . . Scanalyzers . | . . . . . . Garrison Access . | . . . . . . Terminal Hacks 1 | . 1 . . . . Branch Access Points 1 | . 1 . . . . Fabricator Hacks . | . . . . . . Repair Station Hacks . | . . . . . . Recycling Unit Hacks . | . . . . . . Scanalyzer . | . . . . . . Garrison Access Hacks . | . . . . . . Unauthorized Hacks . | . . . . . . Terminals . | . . . . . . Fabricators . | . . . . . . Repair Stations . | . . . . . . Recycling Units . | . . . . . . Scanalyzers . | . . . . . . Garrison Access . | . . . . . . Data Cores Recovered . | . . . . . . Used . | . . . . . . Hacking Detections 1 | . 1 . . . . Full Trace Events . | . . . . . . Feedback Events . | . . . . . . Feedback Blocked . | . . . . . . Robot Schematics Acquired . | . . . . . . Robots Built . | . . . . . . Authchips . | . . . . . . Time . | . . . . . . Total Robot Build Rating . | . . . . . . Part Schematics Acquired . | . . . . . . Parts Built . | . . . . . . Authchips . | . . . . . . Time . | . . . . . . Total Part Build Rating . | . . . . . . Parts Repaired . | . . . . . . Time . | . . . . . . Parts Recycled . | . . . . . . Recycled Matter . | . . . . . . Retrieved Matter . | . . . . . . Retrieved Components . | . . . . . . Parts Scanalyzed . | . . . . . . Part Schematics Acquired . | . . . . . . Parts Damaged . | . . . . . . Bothacking | -11 -10 -9 -9 -7 -6 ------------ Run | Yrd Mat Mat Min Zio Pro Used RIF Installer . | . . . . . . Robots Hacked . | . . . . . . Non-combat . | . . . . . . Combat . | . . . . . . Robot Hacks Applied . | . . . . . . Relay Couplers Released . | . . . . . . Fabnet Peak Effective % . | . . . . . . Robots Rewired . | . . . . . . Allies Hacked . | . . . . . . Hacks Repelled . | . . . . . . Allies | -11 -10 -9 -9 -7 -6 -------- Run | Yrd Mat Mat Min Zio Pro Total Allies 4 | . . . . 4 . Largest Group 4 | . . . . 4 3 Highest-Rated Group 150 | . . . . 150 114 Highest-Rated Ally 39 | . . . . 39 39 Total Orders . | . . . . . . Ally Attacks . | . . . . . . Total Damage . | . . . . . . Kills . | . . . . . . Allies Corrupted . | . . . . . . Allies Melted . | . . . . . . Intel | -11 -10 -9 -9 -7 -6 ------- Run | Yrd Mat Mat Min Zio Pro Robot Analysis Total . | . . . . . . Derelict Logs Recovered 4 | . . . 2 2 . Drone Launches . | . . . . . . Drone Recoveries . | . . . . . . Exploration | -11 -10 -9 -9 -7 -6 ------------- Run | Yrd Mat Mat Min Zio Pro Turns Passed 733 | 9 36 37 106 391 154 Spaces Moved 1303 | 18 72 71 209 629 304 Core 1303 | 18 72 71 209 629 304 Treads . | . . . . . . Legs . | . . . . . . Wheels . | . . . . . . Hover . | . . . . . . Flight . | . . . . . . Fastest Speed 50 | 50 50 50 50 50 50 Average Speed 50 | 50 50 50 50 50 50 Slowest Speed 50 | 50 50 50 50 50 50 Overloaded Moves . | . . . . . . Propulsion Burnouts . | . . . . . . Robots Hopped . | . . . . . . Cave-ins Triggered . | . . . . . . Exploration Rate (%) 36 | 3 20 12 53 71 61 Regions Visited 5 Branch Regions 3 Pre-discovered Areas 1 | . . . 1 . . Known Exits Taken 3 | . . 1 1 1 . Unknown Exits Taken 2 | 1 1 . . . . Scrap Searched 2 | . . . . . 2 Spaces Dug . | . . . . . . Terrain Destroyed . | . . . . . . Melee . | . . . . . . Projectile . | . . . . . . AOE . | . . . . . . Terrain Rammed . | . . . . . . Walls Destroyed . | . . . . . . Machines Disabled . | . . . . . . Actions | -11 -10 -9 -9 -7 -6 --------- Run | Yrd Mat Mat Min Zio Pro Total 1377 | 17 71 71 209 704 305 Wait 69 | . . . . 69 . Move 1298 | 17 71 70 208 628 304 Hop . | . . . . . . Pick Up 2 | . . . . 2 . Fast Attach 6 | . . 1 1 3 1 Attach . | . . . . . . Detach 1 | . . . . 1 . Swap . | . . . . . . Drop 1 | . . . . 1 . Fire . | . . . . . . Melee . | . . . . . . Ram . | . . . . . . Kick . | . . . . . . Crush . | . . . . . . Escape Stasis . | . . . . . . Rewire . | . . . . . . Trap . | . . . . . . Miscellaneous . | . . . . . . Route ------- -11/Scrapyard -10/Materials (discovered 2 exits: [*Mat] / Min) -9/Materials -9/Mines -7/Zion -6/Proximity Caves History --------- Turn | Location | Event 5 | -11/Scrapyard | Discovered new exit (range 12) 10 | -11/Scrapyard | Entered Materials 15 | -10/Materials | Identified exit to Mines 39 | -10/Materials | Discovered new exit (range 15) 46 | -10/Materials | Entered another Materials area 46 | -9/Materials | Evolved 2 slots: Utility x2 78 | -9/Materials | Discovered new exit (range 9) 82 | -9/Materials | Identified exit to Mines 83 | -9/Materials | Entered Mines 112 | -9/Mines | Joined a pair of Derelicts in attacking an 0b10 outpost 141 | -9/Mines | Learned location of Storage (-9) 141 | -9/Mines | Learned location of 1 exit from Materials 172 | -9/Mines | Learned Materials interactive machine intel 179 | -9/Mines | Found a damaged Exp. Sensor Array with a note attached 180 | -9/Mines | Found Prototype Device 180 | -9/Mines | Identified Exp. Sensor Array 186 | -9/Mines | A Derelict revealed a hidden shortcut to a safe place 189 | -9/Mines | Identified exit to Zion 189 | -9/Mines | Entered Zion 199 | -7/Zion | Found Prototype Device 199 | -7/Zion | Identified Bomb Factory No. 2 241 | -7/Zion | Discovered new exit (range 15) 261 | -7/Zion | System corruption cleaned by Quarantine Array 294 | -7/Zion | Given A8's code to call for help 294 | -7/Zion | Learned Factory garrison access intel 311 | -7/Zion | Build established: Mutant 324 | -7/Zion | Learned Factory security intel 345 | -7/Zion | Imprinted 347 | -7/Zion | Declared Zion's savior 450 | -7/Zion | Identified exit to Proximity Caves 580 | -7/Zion | Entered Proximity Caves 580 | -6/Proximity Caves | Accompanied by 3 allies 711 | -6/Proximity Caves | Attracted the attention of an 0b10 checkpoint 714 | -6/Proximity Caves | Core integrity fell below 50% 723 | -6/Proximity Caves | Core integrity fell below 20% 734 | -6/Proximity Caves | Destroyed by S-27 Virus with Autogun Last Messages --------------- 00605_ Found Mak. Leg. 00605_ Found Lightning Gun. 00605_ Found 21 Matter. 00606_ Acquired Imp. Core Shielding. 00626_ I6-E4W(k) breaks down the debris. 00633_ WX-RMW(k) breaks down the debris. 00635_ 6A-APG(k) breaks down the debris. 00654_ Searching scrap... 00654_ Found Imp. Medium Armor Plating. 00654_ Found Imp. Proton Missile Launcher. 00654_ Found Imp. Terrain Scan Processor. 00654_ Found Adv. ECM Suite. 00654_ Found 18 Matter. 00655_ Acquired 18 matter. 00699_ M0-PKI(k) breaks down the debris. 00704_ Acquired 1 matter. 00709_ Acquired 2 matter. 00711_ Y-54 Guardian: "INTERCEPTING UNREGISTERED DERELICT." 00715_ Exp. Sensor Array destroyed. 00734_ Imp. Core Shielding destroyed. Map ----- +----------------------------------------------------+ | ?????????????????????????????????????????????????? | | ?????????????????????????????????????????????????? | | ?????????????????????????????????????????????????? | | ?????????????????????????????????????????????????? | | ?????????????????????????????????????????????????? | | ?????????????????????????????????????????????????? | | ?????????????????????????????????????????????????? | | ?????????????????????????????????????????????????? | | ?????????????????????????????????????????????????? | | ?????????????????????????????????????????????????? | | ?????????????????????????????????????????????????? | | ?????????????????????????????????????????????????? | | ?????????????????????????????????????????????????? | | ?????????????????????????????????????????????????? | | ##??####???????###???????????????????????????????? | | #### #???#### #???????????????????????????????? | | #??## ##??????????????????????????????? | | ##### #??????????????????????????????? | | ## #????#####??????????????????????? | | #???## ##?????????????????????? | | #?#### #?????????????????????? | | #### #?????????????????????? | | ## s s ##????????????????????? | | #### ##???????????????????? | | ##??# #### #???????????????????? | | ##??# #??#### @ #???????????????????? | | #???# #?????# #???????????????????? | | ##???# ????# ## ?????????????????? | | #???## ???##### ??????????????? | | #???## #??????? ????????????? | | ???# ##??????? ### #??????????? | | ? ## ##???????? #????#??????????? | | ? ##? #????????? ### #???????????????? | | ? ##?? ????????? ##?? ##???????????????? | | ?? #?#####??? ?????????#????#????????????????? | | ?????????????? #???????????????????????????????? | | ?????????????? #???????????????????????????????? | | ?????????????? ##???????????????????????????????? | | ??????????????##?????????????????????????????????? | | ?????????????????????????????????????????????????? | | ?????????????????????????????????????????????????? | | ?????????????????????????????????????????????????? | | ?????????????????????????????????????????????????? | | #????????????????????????????????????????????????? | | ?????????????????????????????????????????????? | | #????????????????????????????????????????????????? | | ?????????????????????????????????????????????????? | | ?????????????????????????????????????????????????? | | ?????????????????????????????????????????????????? | | ?????????????????????????????????????????????????? | +----------------------------------------------------+ Best States ------------- Heat Dissipation 28 Energy Generation 5 Energy Capacity 100 Matter Stores 165 Matter Capacity 300 Sight Range 16 Robot Scan Range 20 Terrain Scan Density 10 Core Shielding 30 Evasion (%) 50 Defensive Hacking 11 Item Schematics ----------------- None Robot Schematics ------------------ None Fabricated ------------ Nothing Alien Tech Used ----------------- None Achievements -------------- None Challenges ------------ None Game ------ Seed LaserHeatWeb Manual? 0 Play Time 00:10:34 Cumulative 173.7 hours Start 2024.04.08 @ 23:00:58 End 2024.04.08 @ 23:10:01 Sessions 1 Manual Loads 0 Difficulty Rogue Special Mode None Game No. 162 Rogue 157 Adventurer 0 Explorer 5 Win Type - Total 5 Types 2/0/1/2/0/0/0/0/0 Lore% 53 Gallery% 62 Achievement% 48 Wizard Run 0 Options --------- Layout 0 ASCII 0 Keyboard 0 Movement Mouse Keybinds 0 Fullscreen 2 Font 36/Terminus Map View 83x50 Zoom Use 0% Tactical HUD 1 Map Filters NONE Filters NONE Steam 1 RUN: c906f149-3509-4091-98d7-16fbd762d563